bitfinex-derivatives/quotes_ETHF0:USTF0_20240915
["timestamp","ask_amount","ask_price","bid_price","bid_amount"]
[1726438652627,4.14106,2350.6,2350.3,0.3908]
[1726438653427,0.42538,2350.5,2350.3,0.3908]
[1726438653629,4.14106,2350.6,2350.3,0.3908]
[1726438654938,0.42534,2350.7,2350.4,3.2078]
[1726438656234,0.42535,2350.6,2350.4,3.2078]
[1726438657738,0.42535,2350.6,2350.4,3.63319]
[1726438660339,0.7788,2350.9,2350.4,3.2078]
[1726438660635,0.7788,2350.9,2350.4,3.63318]
[1726438660636,0.42536,2350.6,2350.4,3.63318]
[1726438662037,0.7788,2350.9,2350.4,3.2078]
[1726438662038,0.42537,2350.5,2350.4,3.2078]
[1726438662238,0.42537,2350.5,2350.0,3.419]
[1726438662239,4.2544,2350.5,2349.8,0.099]
[1726438662433,4.38357,2350.2,2349.8,0.4016]
[1726438662629,0.42547,2350.0,2349.8,0.82709]
[1726438664030,0.42544,2350.2,2349.8,0.4016]
[1726438664237,4.4967,2350.4,2350.0,3.2078]
[1726438664432,4.4967,2350.4,2350.1,0.83544]
[1726438664433,0.42543,2350.3,2350.1,0.83544]
[1726438664635,4.4967,2350.4,2350.1,0.83544]
[1726438664636,0.42543,2350.2,2350.1,0.83544]
[1726438665037,0.42543,2350.2,2350.1,0.41]
[1726438665239,0.42542,2350.3,2350.1,0.83543]
[1726438665444,0.42543,2350.2,2350.1,0.41]
[1726438668643,3.7272,2350.4,2349.8,0.82709]
[1726438668644,0.42548,2350.0,2349.8,0.82709]
[1726438668949,0.42549,2349.9,2349.7,0.4019]
[1726438669248,0.83409,2349.9,2349.7,0.4019]
[1726438669435,0.4086,2349.9,2349.7,0.82742]
[1726438669635,0.4255,2349.8,2349.7,0.4019]
[1726438669854,0.83159,2349.9,2349.7,0.82742]
[1726438671349,0.4255,2349.8,2349.7,0.4019]
[1726438671742,0.83159,2349.9,2349.7,0.82742]
[1726438672446,0.4255,2349.8,2349.7,0.82742]
[1726438672636,0.4255,2349.8,2349.7,0.4019]
[1726438674140,0.4255,2349.8,2349.7,0.82742]
[1726438674548,0.4255,2349.8,2349.7,0.4019]
[1726438674939,0.4255,2349.8,2349.7,0.82742]
[1726438675144,0.83159,2349.9,2349.7,0.82742]
[1726438675746,0.82327,2350.0,2349.7,0.4019]
[1726438676051,0.42547,2350.0,2349.8,0.42549]
[1726438676849,1.1759,2350.2,2349.8,0.42549]
[1726438677047,0.42548,2349.9,2349.8,0.42549]
[1726438677248,3.74548,2350.0,2349.8,0.42549]
[1726438677745,0.42548,2350.0,2349.8,0.42549]
[1726438679245,0.4255,2349.8,2349.7,3.6097]
[1726438679453,0.4255,2349.8,2349.6,0.42553]
[1726438679759,0.42552,2349.7,2349.6,0.42553]
[1726438680051,0.42551,2349.8,2349.6,0.42553]
[1726438680248,0.42551,2349.8,2349.5,0.4176]
[1726438680249,0.42554,2349.6,2349.5,0.4176]
[1726438680550,0.42555,2349.5,2349.4,0.3931]
[1726438683153,1.06402,2349.3,2348.8,0.099]
[1726438683345,0.42569,2348.8,2348.6,0.9091]
[1726438683553,3.74567,2348.9,2348.6,0.8101]
[1726438683852,4.4204,2349.2,2348.7,0.42569]
[1726438683853,3.74564,2349.1,2348.7,0.42569]
[1726438684051,4.4204,2349.2,2348.6,0.8101]
[1726438684248,4.132,2349.3,2348.8,8.03482535]
[1726438684447,3.32,2349.5,2348.9,0.3953]
[1726438684448,0.42558,2349.4,2348.9,0.3953]
[1726438684653,0.42558,2349.4,2349.0,0.4038]
[1726438684855,3.32,2349.1,2349.0,0.8053]
[1726438685246,0.42564,2349.0,2348.6,0.81631]
[1726438685447,3.32,2348.9,2348.6,1.2068]
[1726438685650,3.32,2348.9,2348.6,1.63252]
[1726438686957,0.3992,2349.1,2348.6,1.2068]
[1726438687257,0.82483,2349.1,2348.8,0.42567]
[1726438687449,0.3992,2349.1,2348.6,1.2068]
[1726438687648,0.3992,2349.1,2348.8,0.42567]
[1726438687854,0.82483,2349.1,2348.8,0.42567]
[1726438688752,0.42564,2349.0,2348.8,0.42567]
[1726438689352,3.32,2349.4,2349.0,0.42564]
[1726438689561,3.32,2349.4,2348.9,0.42566]
[1726438689860,0.42563,2349.1,2348.9,0.81266]
[1726438690650,3.74562,2349.2,2348.9,0.81266]
[1726438690849,3.74562,2349.2,2349.0,0.4033]
[1726438691149,0.4256,2349.3,2349.1,0.42562]
[1726438691355,8.1131,2349.5,2349.3,0.42559]
[1726438691552,0.7733,2349.5,2349.1,3.6123]
[1726438691757,0.7733,2349.5,2349.3,0.42558]
[1726438692063,0.42554,2349.6,2349.4,0.3937]
[1726438692356,3.32,2349.7,2349.4,0.3937]
[1726438692558,3.32,2349.7,2349.4,0.797]
[1726438692747,0.82811,2349.8,2349.5,0.83005]
[1726438692948,3.32,2349.7,2349.4,0.797]
[1726438693253,3.32,2349.5,2349.4,0.797]
[1726438693648,3.74555,2349.5,2349.2,0.4256]
[1726438693854,3.74555,2349.5,2349.3,0.42559]
[1726438693855,3.32,2349.5,2349.3,0.42559]
[1726438694362,3.32,2349.5,2349.2,0.8193]
[1726438694363,3.74555,2349.5,2349.2,0.8193]
[1726438694664,3.74556,2349.5,2349.2,0.81931]
[1726438694963,3.74556,2349.5,2349.1,0.8078]
[1726438694964,3.32,2349.3,2349.1,0.82892]
[1726438695257,3.32,2349.3,2348.8,3.2078]
[1726438695258,0.42566,2349.0,2348.8,3.2078]
[1726438695464,3.32,2348.9,2348.8,3.2078]
[1726438697164,3.7069,2349.0,2348.8,3.2078]
[1726438697358,3.7069,2349.0,2348.8,3.63348]
[1726438697670,4.13255,2349.0,2348.8,3.2078]
[1726438699671,3.7069,2349.0,2348.8,3.2078]
[1726438699967,4.13254,2349.0,2348.8,3.2078]
[1726438701061,0.42566,2348.9,2348.8,3.2078]
[1726438701269,4.13256,2349.0,2348.8,3.2078]
[1726438701466,4.13256,2349.0,2348.7,0.4257]
[1726438701467,3.7069,2349.0,2348.6,0.7785]
[1726438701666,3.74569,2348.8,2348.6,0.7785]
[1726438701867,0.3869,2349.0,2348.3,3.2078]
[1726438701868,0.42572,2348.6,2348.3,3.2078]
[1726438702066,0.42572,2348.6,2348.3,4.43646]
[1726438702269,0.42575,2348.4,2348.3,4.0107]
[1726438702567,0.42575,2348.4,2348.3,3.2078]
[1726438702966,4.13145,2348.5,2348.3,3.2078]
[1726438703172,0.42575,2348.4,2348.3,3.2078]
[1726438703361,4.13145,2348.5,2348.3,3.2078]
[1726438703563,0.42575,2348.4,2348.3,3.2078]
[1726438706271,4.13145,2348.5,2348.3,3.2078]
[1726438706662,3.7057,2348.5,2348.3,3.63357]
[1726438706864,0.83153,2348.6,2348.4,0.42575]
[1726438706865,0.4058,2348.6,2348.4,0.42575]
[1726438707170,0.4058,2348.6,2348.4,1.18815]
[1726438707563,0.83152,2348.6,2348.4,0.7624]
[1726438710261,0.42573,2348.5,2348.4,0.7624]
[1726438710467,0.83152,2348.6,2348.4,1.18815]
[1726438713073,0.42572,2348.6,2348.4,1.18814]
[1726438713272,0.42572,2348.6,2348.4,1.60034]
[1726438713474,0.42573,2348.6,2348.4,1.60034]
[1726438713971,3.73,2348.7,2348.4,1.1746]
[1726438714176,0.42573,2348.6,2348.4,1.60034]
[1726438714668,0.42573,2348.6,2348.5,0.42573]
[1726438714873,1.88152,2348.8,2348.4,1.1746]
[1726438714874,4.1373,2348.8,2348.4,1.1746]
[1726438715171,4.1373,2348.8,2348.7,0.4257]
[1726438715172,3.74568,2348.8,2348.7,0.4257]
[1726438716474,3.32,2348.8,2348.7,0.4257]
[1726438720164,3.74568,2348.8,2348.7,0.4257]
[1726438720674,3.32,2348.8,2348.7,0.4257]
[1726438723880,3.32,2348.8,2348.4,2.23897]
[1726438723881,0.42567,2348.9,2348.4,2.23897]
[1726438724180,0.42567,2348.9,2348.8,0.42566]
[1726438724484,0.42567,2348.9,2348.7,0.42569]
[1726438725278,0.42568,2348.8,2348.7,0.4257]
[1726438726175,3.74567,2348.9,2348.7,0.4257]
[1726438728076,0.42568,2348.8,2348.7,0.4257]
[1726438728471,3.74567,2348.9,2348.7,0.4257]
[1726438728680,1.06421,2348.8,2348.4,2.70852773]
[1726438728884,3.32,2348.5,2348.2,1.10818773]
[1726438729086,0.42579,2348.2,2348.1,0.411]
[1726438729379,0.42583,2348.0,2347.8,0.42586]
[1726438729579,3.74585,2347.9,2347.6,2.33947773]
[1726438729786,3.74585,2347.9,2347.6,1.23129]
[1726438729787,4.54035,2347.9,2347.6,1.23129]
[1726438730080,0.42587,2347.8,2347.6,0.8054]
[1726438730283,3.74589,2347.7,2347.3,1.53413773]
[1726438730483,3.32,2347.7,2347.4,0.42593]
[1726438730677,3.32,2347.7,2347.3,0.405]
[1726438730887,3.32,2347.7,2347.5,0.42591]
[1726438731186,3.32,2347.7,2347.3,0.405]
[1726438731484,3.32,2347.7,2347.5,0.42591]
[1726438731982,3.32,2347.8,2347.5,0.42591]
[1726438732280,3.74586,2347.8,2347.5,0.42591]
[1726438732685,3.32,2347.8,2347.5,0.42591]
[1726438733285,3.32,2347.8,2347.6,0.8332]
[1726438733483,3.32,2347.8,2347.6,0.4073]
[1726438736483,3.74586,2347.8,2347.6,0.4073]
[1726438736685,3.32,2347.8,2347.6,0.8332]
[1726438736883,3.74587,2347.8,2347.6,0.4073]
[1726438737084,3.74587,2347.8,2347.6,0.8332]
[1726438737389,3.32,2347.8,2347.7,0.42588]
[1726438737582,3.32,2347.8,2347.6,0.4073]
[1726438737778,3.74587,2347.8,2347.6,0.4073]
[1726438738387,3.74588,2347.7,2347.5,0.4259]
[1726438739292,3.74589,2347.7,2347.4,0.42592]
[1726438739490,3.74589,2347.7,2347.3,3.6128]
[1726438739694,3.32,2347.7,2347.5,0.42591]
[1726438739890,3.32,2347.7,2347.3,3.6128]
[1726438739891,0.3873,2347.6,2347.3,3.6128]
[1726438740092,0.3873,2347.6,2347.5,0.42592]
[1726438740490,0.3873,2347.6,2347.4,0.42592]
[1726438741290,3.32,2347.5,2347.3,4.03875]
[1726438742094,3.74592,2347.5,2347.3,4.03875]
[1726438742300,4.1332,2347.6,2347.4,0.42593]
[1726438742498,3.7073,2347.6,2347.4,0.42593]
[1726438743108,4.68553,2347.9,2347.3,3.6128]
[1726438743109,3.6209,2347.9,2347.3,3.6128]
[1726438743292,4.231,2348.3,2347.6,6.5278]
[1726438743593,3.435,2348.4,2347.8,0.42586]
[1726438743594,0.42581,2348.1,2347.8,0.42586]
[1726438743790,3.7458,2348.2,2347.9,0.42584]
[1726438744004,3.32,2348.2,2347.8,0.3867]
[1726438744200,3.7458,2348.2,2347.9,0.42583]
[1726438744394,3.7458,2348.2,2348.0,0.42582]
[1726438744707,3.32,2348.2,2348.0,0.42582]
[1726438745405,3.74579,2348.2,2348.0,0.42582]
[1726438745998,3.32,2348.2,2348.0,0.42582]
[1726438746894,3.32,2348.2,2348.1,0.42581]
[1726438747801,3.32,2348.2,2348.0,0.42581]
[1726438749295,3.32,2348.2,2348.1,0.42581]
[1726438751099,3.32,2348.2,2347.8,3.5945]
[1726438751293,3.32,2348.2,2348.1,0.42581]
[1726438757201,0.391,2348.3,2348.2,0.42579]
[1726438757406,3.97754129,2348.5,2348.3,0.42576]
[1726438757407,0.82614,2348.5,2348.3,0.42576]
[1726438757598,0.4004,2348.5,2348.3,0.42576]
[1726438757794,0.82614,2348.5,2348.3,0.42576]
[1726438758008,4.1072,2348.6,2348.2,0.8002]
[1726438758193,3.7117,2348.6,2348.5,0.42573]
[1726438759698,3.32,2348.6,2348.5,4.68333]
[1726438760406,3.32,2348.7,2348.6,0.42572]
[1726438760700,3.32,2348.7,2348.6,1.22272]
[1726438763012,3.32,2348.9,2348.7,0.42568]
[1726438763313,3.32,2348.9,2348.8,0.42568]
[1726438763513,3.32,2348.9,2348.7,0.42569]
[1726438765114,3.74567,2348.9,2348.6,1.2227]
[1726438765410,3.32,2348.7,2348.6,1.2227]
[1726438769011,3.7457,2348.7,2348.4,3.2078]
[1726438769214,3.7457,2348.7,2348.5,0.42573]
[1726438769215,1.2261,2348.6,2348.5,0.42573]
[1726438769812,5.4837,2348.6,2348.3,0.4171]
[1726438770119,0.42578,2348.3,2348.1,3.2078]
[1726438770417,1.1936,2348.2,2348.1,3.2078]
[1726438770611,3.32,2348.3,2348.1,3.2078]
[1726438771917,3.32,2348.3,2348.1,3.63361]
[1726438772710,3.32,2348.4,2348.3,0.42577]
[1726438773318,3.32,2348.4,2348.3,0.82327]
[1726438773618,3.32,2348.6,2348.5,0.42573]
[1726438773820,3.32,2348.6,2348.4,0.42574]
[1726438774126,3.74572,2348.6,2348.4,0.42574]
[1726438774425,0.42577,2348.4,2348.1,3.6336]
[1726438774620,3.32,2348.2,2348.1,3.6336]
[1726438775111,0.7998,2348.3,2348.2,0.42579]
[1726438775513,0.7998,2348.3,2348.1,3.2078]
[1726438775514,3.32,2348.4,2348.3,0.42577]
[1726438775714,3.32,2348.4,2348.2,0.42578]
[1726438775919,3.74576,2348.4,2348.1,3.2078]
[1726438776120,3.74575,2348.4,2348.2,0.42579]
[1726438776929,3.32,2348.4,2348.2,0.42579]
[1726438777618,3.32,2348.6,2348.1,3.2078]
[1726438777827,0.80991,2348.7,2348.4,0.42574]
[1726438777828,4.12991,2348.7,2348.4,0.42574]
[1726438778020,3.32,2348.6,2348.4,0.42574]
[1726438778624,3.32,2348.6,2348.4,0.81524]
[1726438780431,3.32,2348.6,2348.4,0.3895]
[1726438781129,3.32,2348.6,2348.4,0.81524]
[1726438781630,3.32,2348.6,2348.5,0.42573]
[1726438783134,0.3851,2348.9,2348.5,7.4654]
[1726438783427,0.3851,2348.9,2348.6,0.42571]
[1726438783428,3.74569,2348.8,2348.6,0.42571]
[1726438784022,0.4257,2348.7,2348.4,0.3895]
[1726438784236,3.74569,2348.8,2348.6,0.42571]
[1726438784724,3.74569,2348.8,2348.5,0.42572]
[1726438785426,3.74573,2348.6,2348.4,0.42575]
[1726438785628,0.3922,2348.5,2348.4,0.42575]
[1726438785933,1.2083,2348.5,2348.3,0.42576]
[1726438786122,1.2083,2348.5,2348.4,0.42575]
[1726438795632,0.8161,2348.5,2348.4,0.42575]
[1726438795935,3.32,2348.6,2348.5,0.42573]
[1726438796738,3.74572,2348.6,2348.5,0.42573]
[1726438796925,0.42574,2348.5,2348.3,1.53394773]
[1726438797128,0.42574,2348.5,2348.2,2.45631757]
[1726438797129,0.42577,2348.3,2348.2,1.51988773]
[1726438797335,0.42577,2348.3,2348.2,1.94567773]
[1726438797538,1.23227,2348.3,2348.2,1.94567773]
[1726438797938,1.1975,2348.3,2348.2,1.94567773]
[1726438799828,1.1975,2348.3,2348.2,3.60918385]
[1726438800037,1.1975,2348.3,2348.2,1.94567773]
[1726438800340,1.1975,2348.3,2348.2,3.60917944]
[1726438800532,1.1975,2348.3,2348.2,1.94567773]
[1726438801431,1.1975,2348.3,2348.2,3.60956217]
[1726438801641,3.74577,2348.4,2348.3,0.42577]
[1726438801842,3.32,2348.4,2348.3,0.42577]
[1726438802036,3.32,2348.4,2348.3,3.19759176]
[1726438802239,3.32,2348.4,2348.3,3.59929176]
[1726438802443,3.32,2348.4,2348.3,3.19779914]
[1726438802639,3.32,2348.4,2348.3,1.53395773]
[1726438803435,3.32,2348.4,2348.2,1.10818773]
[1726438803436,4.38439,2348.4,2348.2,1.10818773]
[1726438803643,4.38439,2348.4,2347.9,3.1944453]
[1726438803644,5.32284,2348.3,2347.9,3.1944453]
[1726438803839,0.42581,2348.1,2348.0,1.10818773]
[1726438804034,0.42581,2348.1,2347.9,0.42584]
[1726438804035,3.7458,2348.2,2347.9,4.74182773]
[1726438804231,1.63951,2348.1,2348.0,1.10818773]
[1726438804437,3.32,2348.2,2348.0,1.10818773]
[1726438804641,4.5337,2348.5,2348.1,1.10818773]
[1726438804842,4.5337,2348.5,2348.3,0.42576]
[1726438805545,4.5337,2348.5,2348.2,1.92638773]
[1726438805546,3.32,2348.5,2348.2,1.92638773]
[1726438805745,3.32,2348.5,2348.4,0.42575]
[1726438805946,3.74574,2348.5,2348.3,1.53394773]
[1726438806141,3.74573,2348.5,2348.3,0.42576]
[1726438807641,3.74573,2348.5,2348.3,1.53394773]
[1726438807830,3.74573,2348.5,2348.3,0.42576]
[1726438808037,3.32,2348.5,2348.4,0.42575]
[1726438808639,1.2137,2348.8,2348.4,7.03140934]
[1726438808840,7.452,2348.9,2348.8,0.42568]
[1726438808841,3.32,2348.9,2348.8,0.42568]
[1726438809643,3.32,2348.9,2348.7,0.42569]
[1726438810245,3.32,2348.9,2348.7,1.54007411]
[1726438810448,3.32,2348.9,2348.7,0.42569]
[1726438811562,3.32,2348.9,2348.8,0.42568]
[1726438811860,3.74566,2348.9,2348.7,0.42569]
[1726438812045,3.32,2348.9,2348.7,1.54007411]
[1726438812349,3.32,2348.9,2348.7,0.42569]
[1726438812550,3.32,2348.9,2348.8,0.42568]
[1726438813154,3.32,2348.9,2348.7,0.4257]
[1726438813743,3.32,2348.9,2348.8,0.42568]
[1726438814554,4.1392,2349.1,2349.0,0.42564]
[1726438814751,4.56483,2349.1,2348.7,1.11438411]
[1726438814963,4.56483,2349.1,2348.9,0.42565]
[1726438816454,4.1392,2349.1,2349.0,0.42564]
[1726438816647,3.32,2349.3,2348.9,4.32218411]
[1726438816951,3.32,2349.3,2349.0,0.395]
[1726438817151,3.32,2349.3,2348.9,4.72138411]
[1726438817152,3.32,2349.1,2348.9,1.11438411]
[1726438817453,0.81884,2349.0,2348.8,0.42567]
[1726438817655,3.32,2348.9,2348.8,1.54006411]
[1726438818046,3.32,2348.9,2348.7,1.11438411]
[1726438818247,3.32,2348.9,2348.8,0.42568]
[1726438819745,3.74567,2348.9,2348.7,0.42569]
[1726438819945,3.74567,2348.9,2348.7,0.4257]
[1726438820245,3.32,2348.9,2348.8,0.42568]
[1726438820444,3.74566,2348.9,2348.8,0.42568]
[1726438820756,3.32,2348.9,2348.8,0.42568]
[1726438821750,3.32,2349.1,2348.8,4.2576]
[1726438821954,3.7456,2349.3,2349.1,0.42561]
[1726438822162,0.42561,2349.2,2349.1,0.42561]
[1726438822448,3.7456,2349.3,2349.1,0.42561]
[1726438822644,3.7456,2349.3,2349.0,0.7697]
[1726438822645,3.7456,2349.3,2349.2,0.42561]
[1726438823249,3.7456,2349.3,2349.1,0.42561]
[1726438823452,3.32,2349.3,2349.2,0.42561]
[1726438823648,7.452,2349.7,2349.1,4.2568]
[1726438823850,3.32,2349.7,2349.6,0.42554]
[1726438824047,0.42551,2349.8,2349.5,0.42554]
[1726438824349,3.74552,2349.7,2349.5,0.42554]
[1726438824554,3.32,2349.7,2349.6,0.42554]
[1726438824759,3.74549,2349.9,2349.6,0.42554]
[1726438825149,3.74549,2349.9,2349.4,0.3833]
[1726438825150,0.4255,2349.8,2349.5,0.4051]
[1726438825349,3.74549,2349.9,2349.6,0.42552]
[1726438825652,3.74549,2349.9,2349.7,0.42552]
[1726438825853,3.32,2349.9,2349.5,0.4051]
[1726438826055,3.32,2349.9,2349.8,0.4255]
[1726438826253,3.32,2349.9,2349.5,3.6129]
[1726438826765,3.32,2349.9,2349.8,0.4255]
[1726438826961,3.32,2349.9,2349.5,3.6129]
[1726438826962,3.32,2349.9,2349.7,0.42551]
[1726438827659,3.32,2349.9,2349.8,0.8056]
[1726438828653,4.015,2350.0,2349.8,0.8056]
[1726438828861,4.44046,2350.0,2349.8,0.8056]
[1726438829559,4.44046,2350.0,2349.9,0.42548]
[1726438829560,4.015,2350.0,2349.9,0.42548]
[1726438829759,4.44046,2350.0,2349.8,0.80559]
[1726438829953,4.44047,2350.0,2349.8,0.80559]
[1726438831364,3.74549,2349.9,2349.7,0.42551]
[1726438833761,3.32,2349.9,2349.8,0.4255]
[1726438833965,4.1272,2350.0,2349.9,0.42548]
[1726438834155,0.80862,2350.3,2350.1,0.42544]
[1726438834355,0.3832,2350.3,2350.2,0.42543]
[1726438835078,3.32,2350.6,2350.5,0.42537]
[1726438835362,3.63315,2350.7,2350.5,0.42537]
[1726438835363,4.0078,2350.7,2350.5,0.42536]
[1726438836064,4.43314,2350.7,2350.5,0.42536]
[1726438837370,4.0078,2350.7,2350.1,4.2714]
[1726438837863,4.0078,2350.7,2350.5,0.42536]
[1726438838270,4.0078,2350.7,2350.4,0.42538]
[1726438838569,4.43315,2350.7,2350.5,0.42537]
[1726438838756,1.22535,2350.7,2350.5,0.42537]
[1726438839161,0.8,2350.7,2350.5,0.42537]
[1726438839465,1.22534,2350.7,2350.5,0.42537]
[1726438839668,1.22534,2350.7,2350.4,0.42538]
[1726438839867,1.22534,2350.7,2350.5,0.42536]
[1726438840172,0.4196,2350.8,2350.1,4.27139]
[1726438840468,0.8141,2351.0,2350.9,0.4253]
[1726438840658,3.32,2351.2,2350.8,0.42531]
[1726438840859,3.32,2351.2,2350.6,0.42535]
[1726438840860,0.42533,2350.8,2350.6,0.42535]
[1726438841065,3.32,2350.8,2350.5,0.7862]
[1726438841271,0.42531,2350.9,2350.5,0.7862]
[1726438841858,0.42531,2350.9,2350.7,0.42534]
[1726438842057,3.32,2350.8,2350.5,1.21156]
[1726438842259,0.42534,2350.7,2350.5,1.21156]
[1726438842457,0.4208,2350.7,2350.6,0.42535]
[1726438842861,0.4208,2350.7,2350.5,0.7862]
[1726438842862,0.42535,2350.6,2350.5,0.7862]
[1726438843061,0.42535,2350.6,2350.3,4.57439]
[1726438843062,0.42537,2350.5,2350.3,4.57439]
[1726438843266,0.81387,2350.5,2350.3,0.42539]
[1726438843658,3.32,2350.4,2350.1,3.2078]
[1726438843862,3.32,2350.2,2349.8,4.248]
[1726438844063,3.32,2350.2,2350.0,0.42546]
[1726438844064,0.3849,2350.1,2350.0,0.42546]
[1726438844461,0.81036,2350.1,2349.7,3.6022]
[1726438844670,0.81036,2350.1,2349.9,0.42546]
[1726438845072,1.19886,2350.1,2349.9,0.42546]
[1726438845767,3.74547,2350.0,2349.8,0.42549]
[1726438846462,0.42548,2349.9,2349.7,3.63331]
[1726438846666,0.42548,2349.9,2349.8,0.4255]
[1726438846667,0.4062,2349.9,2349.8,0.4255]
[1726438846867,0.4062,2349.9,2349.7,3.2078]
[1726438846868,0.83169,2349.9,2349.7,3.63331]
[1726438848165,0.4255,2349.8,2349.7,3.2078]
[1726438848366,0.4255,2349.8,2349.6,0.83242]
[1726438848367,0.4255,2349.8,2349.6,0.83243]
[1726438848868,0.42552,2349.7,2349.6,0.4069]
[1726438849075,0.42551,2349.8,2349.6,0.83244]
[1726438849477,0.4062,2349.9,2349.7,0.42552]
[1726438849478,0.83169,2349.9,2349.7,0.42552]
[1726438849676,0.83169,2349.9,2349.8,0.4255]
[1726438849677,0.4062,2349.9,2349.8,0.4255]
[1726438849871,3.74547,2350.0,2349.8,0.4255]
[1726438851070,7.452,2350.4,2349.9,4.2552]
[1726438851266,0.4254,2350.4,2350.2,0.42542]
[1726438851465,0.4254,2350.4,2350.3,0.42541]
[1726438851686,0.4254,2350.4,2350.2,0.42541]
[1726438852070,4.4109,2350.6,2350.4,0.42538]
[1726438852286,4.0258,2350.6,2350.4,0.42539]
[1726438852971,0.42537,2350.5,2350.4,0.42539]
[1726438853171,0.7731,2350.7,2350.4,0.42539]
[1726438853673,0.42535,2350.6,2350.4,0.42539]
[1726438853978,0.42535,2350.6,2350.1,1.0636]
[1726438854186,0.42535,2350.6,2350.5,0.42537]
[1726438854572,0.42535,2350.6,2350.1,1.0636]
[1726438855176,0.42535,2350.6,2350.5,0.42537]
[1726438855575,0.42535,2350.7,2350.5,0.42537]
[1726438855780,0.42535,2350.7,2350.6,0.42535]
[1726438855981,0.42535,2350.7,2350.5,0.42536]
[1726438856180,0.42534,2350.7,2350.5,0.42536]
[1726438856378,4.0931,2350.8,2350.4,0.42538]
[1726438856379,3.32,2350.6,2350.4,0.42538]
[1726438856575,0.42537,2350.5,2350.4,0.42538]
[1726438856775,3.74536,2350.6,2350.5,0.42537]
[1726438856973,3.74532,2350.8,2350.3,1.06353]
[1726438857181,4.27104,2351.0,2350.4,0.8044]
[1726438857182,6.5278,2351.0,2350.4,0.8044]
[1726438857484,0.42529,2351.0,2350.8,0.4253]
[1726438857685,0.42528,2351.1,2350.9,0.42529]
[1726438857877,0.42528,2351.0,2350.9,0.42529]
[1726438858584,3.32,2351.2,2350.9,0.42529]
[1726438858585,0.42528,2351.1,2350.9,0.42529]
[1726438859383,0.42528,2351.0,2350.9,0.42529]
[1726438860289,7.5736,2351.0,2350.5,0.4103]
[1726438860480,3.32,2350.7,2350.6,0.42535]
[1726438861088,3.32,2350.8,2350.6,0.42535]
[1726438861282,0.42535,2350.7,2350.5,0.83566]
[1726438861688,3.74533,2350.8,2350.6,0.42535]
[1726438861892,0.42534,2350.7,2350.6,0.42535]
[1726438862585,0.42534,2350.7,2350.5,0.83566]
[1726438862787,0.42534,2350.7,2350.6,0.42535]
[1726438862995,3.32,2350.8,2350.7,0.42534]
[1726438863191,3.74532,2350.8,2350.7,0.42534]
[1726438863491,0.42534,2350.7,2350.5,0.83566]
[1726438863693,3.32,2350.8,2350.5,0.4103]
[1726438863888,0.42534,2350.7,2350.6,0.42535]
[1726438866296,3.32,2350.8,2350.6,0.42535]
[1726438867490,0.42534,2350.7,2350.6,0.42535]
[1726438868795,0.42535,2350.7,2350.6,0.42535]
[1726438869385,3.74533,2350.8,2350.5,0.4103]
[1726438869592,0.42534,2350.7,2350.6,0.42535]
[1726438869792,3.32,2350.8,2350.7,0.42534]
[1726438869793,3.74533,2350.8,2350.7,0.42534]
[1726438870587,3.74533,2350.8,2350.6,0.42534]
[1726438870794,0.42534,2350.7,2350.6,0.42534]
[1726438873097,1.2477,2350.9,2350.6,0.42534]
[1726438873401,1.2477,2350.9,2350.7,0.42534]
[1726438873402,0.42533,2350.8,2350.7,0.42534]
[1726438874192,0.42533,2350.8,2350.6,0.42534]
[1726438875903,0.42532,2350.8,2350.7,0.42532]
[1726438876294,1.2477,2350.9,2350.5,0.4103]
[1726438876295,0.42531,2350.9,2350.8,0.42531]
[1726438876601,0.42535,2350.6,2350.5,0.83566]
[1726438876795,3.32,2350.6,2350.1,1.11438411]
[1726438877003,3.32,2350.4,2350.2,0.42543]
[1726438877397,3.7054,2350.4,2350.2,0.42543]
[1726438877597,3.7054,2350.4,2350.3,0.42541]
[1726438877908,0.3854,2350.4,2350.3,0.42541]
[1726438878200,0.4177,2350.5,2350.4,0.42539]
[1726438878594,3.7054,2350.6,2350.1,1.93598411]
[1726438878794,3.2078,2350.8,2350.1,1.93598411]
[1726438878795,0.4177,2350.9,2350.3,3.2078]
[1726438878989,0.4177,2350.9,2350.7,0.42532]
[1726438878990,0.84301,2350.9,2350.7,0.42532]
[1726438879193,0.84301,2350.9,2350.4,0.4049]
[1726438879398,0.84301,2350.9,2350.7,0.42533]
[1726438881098,0.4177,2350.9,2350.6,0.42534]
[1726438881304,0.42533,2350.8,2350.6,0.42534]
[1726438881900,1.23374,2350.7,2350.5,0.83557]
[1726438882203,3.32,2350.6,2350.1,1.21338411]
[1726438882402,3.7454,2350.4,2350.2,0.42542]
[1726438882601,0.4046,2350.3,2350.2,0.42542]
[1726438882999,0.83001,2350.3,2350.2,0.42542]
[1726438883305,1.46815,2350.3,2349.9,4.149]
[1726438883492,3.7243,2350.2,2349.9,0.82317]
[1726438883691,0.42546,2350.1,2349.9,0.82317]
[1726438883903,0.3984,2350.0,2349.9,0.82317]
[1726438884900,0.82386,2350.0,2349.9,0.3977]
[1726438885095,0.82386,2350.0,2349.8,0.81449]
[1726438885405,0.82386,2350.0,2349.9,0.42548]